bitfinex-derivatives/quotes_SOLF0:USTF0_20250428
["timestamp","ask_amount","ask_price","bid_price","bid_amount"]
[1745824608712,30.2852,150.89,150.86,6.6262]
[1745824608912,23.66,150.89,150.86,6.6262]
[1745824609615,23.66,150.89,150.85,6.6267]
[1745824610213,30.2852,150.89,150.85,6.6267]
[1745824610716,30.2852,150.89,150.86,6.6265]
[1745824610919,30.2852,150.89,150.83,4.0742]
[1745824611917,30.2852,150.89,150.85,6.6266]
[1745824612120,6.6256,150.88,150.85,6.6266]
[1745824613119,30.2853,150.89,150.85,6.6266]
[1745824614723,23.66,150.89,150.83,4.0742]
[1745824614923,11.43329515,150.91,150.83,4.0742]
[1745824615121,18.05789515,150.91,150.87,6.6258]
[1745824616224,18.05789515,150.91,150.88,6.6256]
[1745824616422,6.6246,150.91,150.88,6.6256]
[1745824616716,30.284,150.92,150.89,6.6249]
[1745824616922,23.66,150.92,150.85,23.66]
[1745824617322,23.66,150.92,150.89,6.6248]
[1745824618726,23.66,150.92,150.9,6.6245]
[1745824619224,11.43329515,150.93,150.91,6.6243]
[1745824619425,6.6231,150.94,150.91,6.6243]
[1745824620424,11.43329515,150.93,150.85,23.66]
[1745824621225,6.624,150.92,150.85,23.66]
[1745824621720,6.624,150.92,150.88,6.6252]
[1745824622420,6.624,150.92,150.89,6.6251]
[1745824622724,18.05679515,150.93,150.89,6.6251]
[1745824623327,18.05679515,150.93,150.9,6.6246]
[1745824623626,18.05679515,150.93,150.85,23.66]
[1745824623926,18.05679515,150.93,150.89,6.6249]
[1745824624721,18.05679515,150.93,150.9,6.6246]
[1745824625532,35.09329515,150.95,150.91,6.624]
[1745824625725,23.66,150.95,150.88,11.43329515]
[1745824625920,23.66,150.95,150.89,29.6334]
[1745824626225,23.66,150.95,150.93,6.6232]
[1745824626621,11.43329515,150.97,150.93,6.6232]
[1745824626826,11.43329515,150.97,150.94,6.6229]
[1745824628229,18.05509515,150.97,150.94,6.6229]
[1745824628529,11.43329515,150.97,150.95,6.6224]
[1745824629227,18.05499515,150.97,150.95,6.6224]
[1745824629428,18.05499515,150.97,150.94,6.6228]
[1745824631230,11.43329515,150.97,150.89,29.6334]
[1745824631432,11.43329515,150.95,150.89,29.6334]
[1745824631832,6.6232,150.94,150.91,6.624]
[1745824632335,11.43329515,150.95,150.89,29.6334]
[1745824633236,11.43329515,150.95,150.92,6.6235]
[1745824634134,11.43329515,150.95,150.93,6.6234]
[1745824634634,6.6224,150.96,150.93,6.6234]
[1745824637135,35.09329515,150.98,150.89,29.6334]
[1745824637340,23.66,150.98,150.9,11.43329515]
[1745824638138,30.2813,150.98,150.9,11.43329515]
[1745824638936,30.2813,150.98,150.95,6.6225]
[1745824639234,11.43329515,150.97,150.89,29.6334]
[1745824639633,11.43329515,150.97,150.92,6.6236]
[1745824640038,6.6223,150.96,150.92,6.6236]
[1745824640238,11.43329515,150.97,150.93,6.6232]
[1745824640540,11.43329515,150.97,150.89,29.6334]
[1745824641445,11.43329515,150.97,150.94,6.6227]
[1745824642241,11.43329515,150.97,150.95,6.6224]
[1745824643145,11.43329515,150.97,150.94,6.6228]
[1745824643643,11.43329515,150.97,150.89,29.6334]
[1745824643941,11.43329515,150.97,150.95,6.6224]
[1745824644337,11.43329515,150.97,150.89,29.6334]
[1745824644543,11.43329515,150.93,150.89,23.66]
[1745824644743,18.05699515,150.93,150.86,23.64]
[1745824645043,11.43329515,150.91,150.86,23.64]
[1745824645438,18.05779515,150.91,150.86,23.64]
[1745824645640,11.43329515,150.93,150.86,23.64]
[1745824645840,23.64,150.94,150.86,35.07329515]
[1745824646144,23.64,150.94,150.87,5.8391]
[1745824646644,41.69509515,150.97,150.93,6.6232]
[1745824646942,23.64,150.97,150.88,11.43329515]
[1745824647444,30.262,150.97,150.93,6.6232]
[1745824647644,11.43329515,150.96,150.9,23.64]
[1745824648352,6.6227,150.95,150.91,6.624]
[1745824648644,6.6227,150.95,150.9,23.64]
[1745824649244,6.6227,150.95,150.92,6.6238]
[1745824651047,18.05559515,150.96,150.92,6.6238]
[1745824651841,23.64,150.97,150.9,23.64]
[1745824653347,23.64,150.97,150.94,6.6227]
[1745824657347,23.64,150.97,150.95,6.6224]
[1745824657549,18.05459515,150.98,150.95,6.6224]
[1745824657750,6.6213,150.98,150.95,6.6224]
[1745824657952,6.621,150.99,150.95,6.6224]
[1745824658452,41.69379515,151.0,150.9,35.07329515]
[1745824658952,41.69379515,151.0,150.96,6.6217]
[1745824659853,6.6209,150.99,150.95,6.6224]
[1745824660048,11.43329515,150.98,150.9,35.07329515]
[1745824660351,18.05479515,150.98,150.94,6.623]
[1745824661853,6.6217,150.97,150.94,6.623]
[1745824664452,18.05469515,150.98,150.94,6.623]
[1745824664658,18.05469515,150.98,150.95,6.6224]
[1745824665256,35.07329515,151.0,150.9,35.07329515]
[1745824665453,35.07329515,151.0,150.92,11.43329515]
[1745824665660,35.07329515,151.0,150.93,3.9979]
[1745824665855,23.64,151.0,150.97,6.6214]
[1745824666055,23.64,151.0,150.94,23.64]
[1745824666251,18.05299515,151.02,150.99,6.6208]
[1745824669260,6.62,151.01,150.98,6.621]
[1745824669461,11.43329515,151.02,150.94,23.64]
[1745824670258,18.05289515,151.02,150.94,23.64]
[1745824671562,11.43329515,151.02,150.99,6.6206]
[1745824672259,18.05279515,151.02,150.99,6.6206]
[1745824673262,6.6199,151.01,150.98,6.621]
[1745824673863,18.05289515,151.02,150.99,6.6207]
[1745824674358,6.6199,151.01,150.98,6.6211]
[1745824674565,11.43329515,151.0,150.94,23.64]
[1745824675465,18.05389515,151.0,150.97,6.6216]
[1745824676362,23.64,151.03,150.98,6.6212]
[1745824676568,11.43329515,151.02,150.98,6.6212]
[1745824676869,6.6202,151.01,150.98,6.6212]
[1745824677469,11.43329515,151.02,150.98,6.6212]
[1745824677971,6.62,151.01,150.98,6.6212]
[1745824679469,18.05289515,151.02,150.99,6.6208]
[1745824680070,6.6199,151.01,150.99,6.6208]
[1745824680269,11.43329515,151.02,150.99,6.6208]
[1745824681070,11.43329515,151.02,150.98,6.621]
[1745824681271,11.43329515,151.02,150.94,23.64]
[1745824681570,6.6199,151.01,150.94,23.64]
[1745824682370,18.05299515,151.02,150.94,23.64]
[1745824682866,11.43329515,151.02,150.94,23.64]
[1745824683073,23.64,151.03,150.94,35.07329515]
[1745824683270,11.43329515,151.04,150.94,35.07329515]
[1745824683467,6.619,151.03,150.94,35.07329515]
[1745824683873,6.619,151.03,151.0,6.6201]
[1745824684876,18.05209515,151.04,151.0,6.6201]
[1745824685171,18.05209515,151.04,151.01,6.6199]
[1745824685677,18.05209515,151.04,150.94,35.07329515]
[1745824685678,41.67129515,151.06,151.03,6.619]
[1745824686975,6.6185,151.05,151.02,6.6193]
[1745824687275,6.6185,151.05,150.98,23.62]
[1745824687575,6.6185,151.05,151.02,6.6192]
[1745824688371,6.6185,151.05,151.03,6.619]
[1745824688870,41.67119515,151.06,151.03,6.619]
[1745824690973,6.6182,151.05,151.03,6.619]
[1745824691475,41.67119515,151.06,151.03,6.619]
[1745824692977,6.6182,151.05,151.03,6.619]
[1745824693275,6.6182,151.05,151.02,6.6193]
[1745824695278,6.6182,151.05,151.03,6.6189]
[1745824695780,23.62,151.09,151.05,6.6179]
[1745824695980,35.05329515,151.09,151.05,6.6179]
[1745824696278,6.6171,151.08,151.05,6.6179]
[1745824696572,6.6171,151.08,151.0,11.43329515]
[1745824696779,6.6171,151.08,151.02,23.62]
[1745824697180,6.6171,151.08,151.05,6.6179]
[1745824699280,11.43329515,151.07,150.99,29.4764]
[1745824699480,11.43329515,151.05,150.99,29.4764]
[1745824699979,18.05149515,151.05,151.02,6.6192]
[1745824701783,11.43329515,151.05,151.02,6.6192]
[1745824702286,11.43329515,151.07,150.99,29.4764]
[1745824702482,35.05329515,151.09,151.0,11.43329515]
[1745824702884,6.6173,151.07,151.04,6.6183]
[1745824704782,35.05329515,151.09,150.99,29.4764]
[1745824704989,35.05329515,151.09,151.0,11.43329515]
[1745824705487,41.66989515,151.09,151.06,6.6175]
[1745824706891,18.04989515,151.09,151.06,6.6175]
[1745824708985,6.6169,151.08,151.06,6.6175]
[1745824709185,11.43329515,151.09,151.06,6.6175]
[1745824709992,18.04979515,151.09,151.06,6.6175]
[1745824711589,18.04979515,151.09,151.07,6.6173]
[1745824712593,11.43329515,151.09,151.07,6.6173]
[1745824712794,11.43329515,151.09,151.08,6.6168]
[1745824713291,11.43329515,151.11,151.03,23.62]
[1745824713485,11.43329515,151.11,151.04,3.8995]
[1745824713993,11.43329515,151.11,151.09,6.6161]
[1745824715796,11.43329515,151.11,151.1,6.616]
[1745824717195,23.62,151.12,151.1,6.616]
[1745824717997,23.62,151.12,151.11,6.6155]
[1745824718395,23.62,151.12,151.04,17.40719515]
[1745824718595,23.62,151.12,151.1,6.6157]
[1745824719497,23.62,151.12,151.11,6.6155]
[1745824719794,11.43329515,151.17,151.1,11.43329515]
[1745824719999,30.2129,151.18,151.14,6.6139]
[1745824721399,6.6129,151.17,151.13,6.6145]
[1745824722001,18.04619515,151.17,151.13,6.6145]
[1745824722201,6.6134,151.16,151.12,6.615]
[1745824723201,6.6134,151.16,151.13,6.6146]
[1745824724003,6.6134,151.16,151.12,6.615]
[1745824724204,6.6139,151.15,151.12,6.615]
[1745824724396,11.43329515,151.15,151.1,23.6]
[1745824724801,6.615,151.13,151.09,6.6161]
[1745824725106,6.615,151.13,151.1,6.6159]
[1745824726608,6.6151,151.12,151.09,6.6162]
[1745824727310,6.6148,151.13,151.1,6.6159]
[1745824727807,6.6151,151.12,151.09,6.6163]
[1745824728007,11.43329515,151.13,151.07,23.6]
[1745824729109,6.6153,151.12,151.09,6.6161]
[1745824729315,23.6,151.14,151.07,23.6]
[1745824730516,6.6149,151.13,151.09,6.6161]
[1745824731315,6.6149,151.13,151.1,6.6159]
[1745824731612,23.6,151.14,151.07,23.6]
[1745824731816,6.6152,151.12,151.07,23.6]
[1745824732316,6.6148,151.13,151.09,6.6162]
[1745824732517,6.6148,151.13,151.07,23.6]
[1745824733418,6.6148,151.13,151.09,6.616]
[1745824733719,6.6148,151.13,151.07,23.6]
[1745824733918,6.6152,151.12,151.09,6.6162]
[1745824734217,23.6,151.14,151.07,23.6]
[1745824734418,6.6148,151.13,151.07,23.6]
[1745824734818,6.6154,151.12,151.09,6.6161]
[1745824736220,6.6156,151.11,151.08,6.6167]
[1745824737917,6.6152,151.12,151.09,6.6164]
[1745824738112,11.43329515,151.13,151.07,23.6]
[1745824738621,6.6152,151.12,151.09,6.6162]
[1745824739422,6.6152,151.12,151.08,6.6167]
[1745824740222,6.6152,151.12,151.09,6.6164]
[1745824740520,11.43329515,151.11,151.02,1.15182206]
[1745824740720,11.43329515,151.08,151.01,27.678]
[1745824740923,11.43329515,151.06,151.01,27.678]
[1745824741223,11.43329515,151.04,150.99,2.0738]
[1745824741422,6.6194,151.03,150.99,8.6943]
[1745824742022,18.05209515,151.04,151.0,21.19768]
[1745824742322,18.05209515,151.04,151.0,14.57738]
[1745824742621,6.6188,151.04,151.0,14.57738]
[1745824742924,6.6188,151.04,151.0,21.19758]
[1745824743226,30.2182,151.05,151.0,14.57738]
[1745824743528,23.6,151.05,151.0,14.57738]
[1745824743725,23.6,151.05,151.02,6.6192]
[1745824743927,23.6,151.05,151.0,14.57738]
[1745824744528,30.2182,151.05,151.0,14.57738]
[1745824744726,11.43329515,151.04,151.0,14.57738]
[1745824745226,18.05209515,151.04,151.0,14.57738]
[1745824745925,6.619,151.03,151.0,21.19758]
[1745824746523,18.05209515,151.04,151.0,21.19758]
[1745824746727,11.43329515,151.04,151.0,14.57738]
[1745824747624,6.6191,151.03,151.0,14.57738]
[1745824747823,11.43329515,151.04,151.0,14.57738]
[1745824748826,6.6199,151.01,151.0,14.57738]
[1745824749630,18.05299515,151.02,151.0,14.57738]
[1745824750731,11.43329515,151.02,151.0,14.57738]
[1745824750930,6.6192,151.03,151.0,21.19758]
[1745824752529,11.43329515,151.02,151.0,14.57738]
[1745824752932,6.6211,150.99,150.95,4.078]
[1745824753230,11.43329515,150.99,150.95,4.078]
[1745824753622,11.43329515,150.99,150.96,6.6218]
[1745824754235,6.6205,151.0,150.97,6.6215]
[1745824754635,6.6209,150.99,150.95,6.6221]
[1745824754829,6.6209,150.99,150.92,27.5783]
[1745824755431,6.6209,150.99,150.96,6.6219]
[1745824756441,35.03329515,151.01,150.92,27.5783]
[1745824756636,35.03329515,151.01,150.93,11.43329515]
[1745824757241,41.65329515,151.01,150.98,6.6212]
[1745824757941,6.6204,151.0,150.97,6.6215]
[1745824758337,35.03329515,151.01,150.97,6.6215]
[1745824758743,41.65349515,151.01,150.97,6.6215]
[1745824759842,6.6204,151.0,150.97,6.6215]
[1745824760242,35.03329515,151.01,150.98,6.6212]
[1745824761442,41.65349515,151.01,150.98,6.6212]
[1745824764547,6.6204,151.0,150.97,6.6215]
[1745824766250,41.65339515,151.01,150.98,6.6212]
[1745824766545,35.03329515,151.01,150.93,11.43329515]
[1745824766948,41.65329515,151.01,150.97,6.6213]
[1745824767149,35.03329515,151.01,150.97,6.6213]
[1745824767350,35.03329515,151.01,150.92,27.5783]
[1745824767644,6.6211,150.99,150.92,27.5783]
[1745824767948,6.6211,150.99,150.96,6.622]
[1745824768347,11.43329515,150.99,150.92,27.5783]
[1745824768549,11.43329515,150.99,150.94,6.6227]
[1745824768745,11.43329515,150.97,150.92,27.5783]
[1745824768948,18.05529515,150.97,150.92,27.5783]
[1745824769150,18.05529515,150.97,150.93,6.6232]
[1745824769754,11.43329515,150.95,150.91,6.6242]
[1745824770246,18.05609515,150.95,150.91,6.6242]
[1745824771452,6.6231,150.94,150.91,6.6242]
[1745824772253,18.05599515,150.95,150.92,6.6238]
[1745824772650,18.05599515,150.95,150.9,1.9392]
[1745824772950,6.6231,150.94,150.91,6.6241]
[1745824773951,18.05599515,150.95,150.92,6.6238]
[1745824774952,11.43329515,150.95,150.92,6.6238]
[1745824775452,23.62,150.97,150.87,35.05329515]
[1745824775453,35.05329515,150.97,150.93,6.6232]
[1745824775843,23.62,150.97,150.89,11.43329515]
[1745824776050,23.62,150.97,150.91,11.43329515]
[1745824776250,11.43329515,150.99,150.92,2.0539]
[1745824776446,11.43329515,150.99,150.96,6.6218]
[1745824777656,18.05439515,150.99,150.96,6.6218]
[1745824778654,6.6213,150.98,150.96,6.6218]
[1745824779559,6.6213,150.98,150.95,6.6224]
[1745824780453,11.43329515,150.99,150.92,2.0539]
[1745824780659,11.43329515,150.97,150.91,23.62]
[1745824781257,6.6225,150.96,150.91,23.62]
[1745824781658,6.6225,150.96,150.93,6.6234]
[1745824784859,6.6225,150.96,150.92,6.6237]
[1745824785061,6.6227,150.95,150.92,6.6237]
[1745824785561,6.6224,150.96,150.92,6.6237]
[1745824785856,6.6224,150.96,150.93,6.6234]
[1745824786063,11.43329515,150.99,150.91,23.62]
[1745824786261,23.62,151.01,150.93,11.43329515]
[1745824786457,23.62,151.01,150.95,6.6222]
[1745824786662,35.05329515,151.01,150.95,6.6222]
[1745824787059,6.6208,150.99,150.95,6.6222]
[1745824787260,35.05329515,151.01,150.96,6.622]
[1745824787561,6.6206,151.0,150.96,6.622]
[1745824787764,35.05329515,151.01,150.96,6.622]
[1745824788162,6.6205,151.0,150.97,6.6216]
[1745824788365,35.05329515,151.01,150.97,6.6216]
[1745824788761,23.62,151.01,150.95,23.62]
[1745824789066,11.43329515,151.03,150.95,35.05329515]
[1745824789369,23.62,151.04,151.02,6.6195]
[1745824789570,35.05329515,151.07,150.99,35.05329515]
[1745824789961,35.05329515,151.07,151.04,6.6183]
[1745824790767,11.43329515,151.09,151.01,11.43329515]
[1745824791370,11.43329515,151.09,151.06,6.6174]
[1745824792169,18.04999515,151.09,151.05,6.618]
[1745824792372,18.04999515,151.09,151.03,23.62]
[1745824792771,18.04999515,151.09,151.05,6.6181]
[1745824793070,6.6169,151.08,151.05,6.6181]
[1745824793671,6.6169,151.08,151.04,6.6184]
[1745824793972,6.6169,151.08,151.05,12.0]
[1745824796778,6.6174,151.07,151.05,12.0]
[1745824798277,6.6177,151.06,151.05,12.0]
[1745824800483,23.62,151.1,151.05,12.0]
[1745824800484,6.6175,151.07,151.05,12.0]
[1745824801075,6.6169,151.08,151.05,12.0]
[1745824801280,23.6,151.13,151.05,12.0]
[1745824801470,23.6,151.16,151.05,12.0]
[1745824801672,23.6,151.16,151.06,2.0166]
[1745824801879,23.6,151.16,151.09,6.6161]
[1745824802380,23.6,151.16,151.1,6.6156]
[1745824802782,6.6145,151.14,151.1,6.6156]
[1745824802978,23.6,151.16,151.08,6.6164]
[1745824803583,6.6151,151.13,151.08,6.6164]
[1745824804183,6.6151,151.13,151.09,6.6163]
[1745824804385,6.6151,151.12,151.09,6.6163]
[1745824804986,6.6151,151.12,151.08,6.6167]
[1745824805984,6.6151,151.12,151.09,6.6164]
[1745824813692,6.6151,151.12,151.08,6.6166]
[1745824814591,6.6148,151.13,151.07,23.6]
[1745824814886,23.6,151.16,151.07,23.6]
[1745824815290,6.6149,151.13,151.07,23.6]
[1745824815990,6.6149,151.13,151.1,6.6158]
[1745824816990,6.6151,151.12,151.09,6.6162]
[1745824817791,6.6148,151.13,151.1,6.6158]
[1745824819196,6.6144,151.14,151.11,6.6155]
[1745824819594,11.38354517,151.15,151.07,23.6]
[1745824819797,34.96354517,151.19,151.1,11.38354517]
[1745824820294,6.6136,151.16,151.13,6.6144]
[1745824822097,6.613,151.17,151.14,6.614]
[1745824822398,34.96354517,151.19,151.14,6.614]
[1745824822696,6.6131,151.17,151.15,12.0]
[1745824825299,6.6131,151.17,151.15,18.6137]
[1745824825897,6.6131,151.17,151.15,12.0]
[1745824826194,6.6126,151.18,151.15,12.0]
[1745824826399,11.38354517,151.21,151.16,6.6131]
[1745824826796,6.6117,151.2,151.15,12.0]
[1745824826996,6.6117,151.2,151.17,6.6126]
[1745824827199,11.38354517,151.21,151.15,12.0]
[1745824827399,6.6123,151.19,151.15,12.0]
[1745824827703,6.6123,151.19,151.16,6.613]
[1745824829205,6.6123,151.19,151.17,6.6128]
[1745824829503,6.6118,151.2,151.17,6.6128]
[1745824830508,11.38354517,151.21,151.15,12.0]
[1745824830905,6.6118,151.2,151.17,6.6127]
[1745824831201,11.38354517,151.19,151.15,12.0]
[1745824831608,6.6133,151.16,151.15,12.0]
[1745824833106,6.6131,151.17,151.15,12.0]
[1745824833303,11.38354517,151.19,151.15,12.0]
[1745824834807,6.6133,151.16,151.15,12.0]
[1745824835011,11.38354517,151.17,151.11,23.58]
[1745824835407,6.6147,151.13,151.11,23.58]
[1745824836009,6.6144,151.14,151.11,23.58]
[1745824836311,23.58,151.18,151.11,23.58]
[1745824836620,6.6139,151.15,151.11,30.1954]
[1745824836812,11.38354517,151.17,151.11,23.58]
[1745824837207,6.6149,151.13,151.11,23.58]
[1745824837805,6.6151,151.12,151.11,23.58]
[1745824838003,6.6151,151.12,151.11,35.58]
[1745824838204,11.38354517,151.17,151.11,35.58]
[1745824838516,11.38354517,151.17,151.11,23.58]
[1745824838815,6.615,151.13,151.11,23.58]
[1745824839417,11.38354517,151.17,151.11,23.58]
[1745824841318,6.615,151.13,151.11,23.58]
[1745824841517,11.38354517,151.13,151.08,23.58]
[1745824841711,11.38354517,151.11,151.07,2.0824]
[1745824841915,6.6167,151.09,151.06,30.1973]
[1745824842117,11.38354517,151.11,151.06,23.58]
[1745824844319,6.6172,151.08,151.06,23.58]
[1745824844520,6.6172,151.08,151.07,12.0]
[1745824844719,11.38354517,151.11,151.07,12.0]
[1745824846016,6.6168,151.08,151.07,12.0]
[1745824847124,11.38354517,151.09,151.03,25.509]
[1745824847820,11.38354517,151.09,151.03,23.58]
[1745824848020,11.38354517,151.07,151.03,23.58]
[1745824848419,6.618,151.06,151.02,10.604]
[1745824848926,6.6172,151.08,151.02,3.9847]
[1745824849124,6.6172,151.08,151.03,2.063]
[1745824849425,6.6172,151.08,151.04,6.6182]
[1745824849925,6.6166,151.09,151.05,18.6178]
[1745824850122,23.58,151.1,151.05,18.6178]
[1745824851226,6.6169,151.08,151.05,18.6178]
[1745824852229,11.38354517,151.09,151.05,12.0]
[1745824852829,6.6177,151.06,151.05,12.0]
[1745824856742,18.00104517,151.07,151.05,12.0]
[1745824857240,6.6177,151.06,151.05,12.0]
[1745824858043,11.38354517,151.07,151.02,3.9847]
[1745824858237,11.38354517,151.05,151.02,3.9847]
[1745824858441,11.38354517,151.05,151.0,25.6308]
[1745824858742,11.38354517,151.05,151.0,32.251]
[1745824859242,11.38354517,151.05,151.0,25.6308]
[1745824859441,23.58,151.06,151.0,25.6308]
[1745824861044,6.6176,151.07,151.01,12.0]
[1745824861238,34.96354517,151.09,151.01,12.0]
[1745824861543,34.96354517,151.09,151.01,23.38354517]
[1745824861944,6.6171,151.08,151.05,6.618]
[1745824862744,41.58014517,151.09,151.06,6.6177]
[1745824863238,34.96354517,151.09,151.04,6.6184]
[1745824863545,34.96354517,151.09,151.01,11.38354517]
[1745824863844,6.6174,151.07,151.04,6.6183]
[1745824864242,34.96354517,151.09,151.04,6.6183]
[1745824864546,6.6172,151.08,151.04,6.6183]
[1745824864744,6.6172,151.08,151.05,6.618]
[1745824865046,6.6172,151.08,151.06,12.0]
[1745824865352,6.6173,151.07,151.06,12.0]
[1745824866952,6.617,151.08,151.06,12.0]
[1745824867744,30.1966,151.09,151.06,12.0]
[1745824867945,30.1966,151.09,151.06,18.6175]
[1745824868152,23.58,151.09,151.06,18.6175]
[1745824868550,6.6169,151.08,151.06,12.0]
[1745824869250,30.1966,151.09,151.06,18.6177]
[1745824869749,6.6171,151.08,151.06,12.0]
[1745824870450,30.1967,151.09,151.06,12.0]
[1745824870648,6.6167,151.09,151.06,12.0]
[1745824870847,6.6161,151.1,151.07,6.617]
[1745824871048,11.38354517,151.11,151.06,12.0]
[1745824871244,23.58,151.12,151.06,12.0]
[1745824871652,11.38354517,151.11,151.06,12.0]
[1745824872046,11.38354517,151.09,151.06,12.0]
[1745824872650,11.38354517,151.11,151.06,12.0]
[1745824873152,17.99944517,151.11,151.08,6.6167]
[1745824874158,6.616,151.1,151.08,6.6167]
[1745824874452,11.38354517,151.11,151.08,6.6167]
[1745824874755,17.99924517,151.11,151.08,6.6167]
[1745824875654,30.1953,151.12,151.09,6.6161]
[1745824875954,23.58,151.12,151.06,12.0]
[1745824876158,23.58,151.12,151.11,6.6155]
[1745824876346,6.6144,151.14,151.11,6.6155]
[1745824876545,34.96354517,151.15,151.06,12.0]
[1745824876856,6.6149,151.13,151.06,12.0]
[1745824877154,34.96354517,151.15,151.06,12.0]
[1745824877455,6.6145,151.14,151.11,6.6154]
[1745824878253,41.57744517,151.15,151.12,6.615]
[1745824878458,23.58,151.15,151.12,6.615]
[1745824879151,23.58,151.15,151.13,6.6146]
[1745824879458,11.38354517,151.2,151.12,23.58]
[1745824879756,17.35094517,151.2,151.15,6.6135]
[1745824879950,6.6123,151.19,151.15,6.6135]
[1745824880347,6.6123,151.19,151.16,6.6133]
[1745824880757,6.6125,151.18,151.14,6.6139]
[1745824880955,11.38354517,151.16,151.12,23.58]
[1745824881156,11.38354517,151.16,151.09,23.58]
[1745824881352,500.06,151.21,151.09,23.58]
[1745824881353,23.58,151.17,151.09,23.58]
[1745824881551,34.96354517,151.18,151.09,34.96354517]
[1745824882052,34.96354517,151.18,151.13,6.6144]
[1745824882255,34.96354517,151.18,151.09,34.96354517]
[1745824882452,34.96354517,151.18,151.1,12.0]
[1745824882659,6.6134,151.16,151.12,6.6149]
[1745824883152,6.6134,151.16,151.13,6.6146]
[1745824884254,6.613,151.17,151.14,6.6142]
[1745824884459,11.38354517,151.2,151.11,11.38354517]
[1745824884855,6.6124,151.19,151.15,6.6135]
[1745824885160,11.38354517,151.2,151.15,6.6135]
[1745824885459,6.6124,151.19,151.15,6.6135]
[1745824885859,11.38354517,151.2,151.16,12.0]
[1745824886060,11.38354517,151.18,151.14,6.614]
[1745824886361,17.99634517,151.18,151.14,6.614]
[1745824886571,11.38354517,151.18,151.09,34.96354517]
[1745824886960,6.6136,151.16,151.09,34.96354517]
[1745824887157,6.6136,151.16,151.12,6.6148]
[1745824887759,11.38354517,151.18,151.11,6.6153]
[1745824887961,11.38354517,151.16,151.11,6.6153]
[1745824888560,6.6146,151.14,151.11,6.6153]
[1745824888962,6.6146,151.14,151.12,12.0]
[1745824889158,6.6146,151.14,151.11,6.6153]
[1745824889862,6.614,151.15,151.11,6.6153]
[1745824890962,6.614,151.15,151.12,6.615]
[1745824891167,17.99704517,151.16,151.12,6.615]
[1745824891354,11.38354517,151.16,151.09,34.96354517]
[1745824891560,17.99724517,151.16,151.12,6.6148]
[1745824891965,17.99724517,151.16,151.09,34.96354517]
[1745824892457,17.99724517,151.16,151.13,6.6144]
[1745824893261,30.1731,151.17,151.14,6.6142]
[1745824894867,17.99694517,151.16,151.13,6.6145]
[1745824895064,11.38354517,151.16,151.13,6.6145]
[1745824895363,17.99714517,151.16,151.13,18.6145]
[1745824896369,17.99714517,151.16,151.14,6.6142]
[1745824897070,11.38354517,151.16,151.14,6.6142]
[1745824898066,17.99694517,151.16,151.14,6.6142]
[1745824898269,11.38354517,151.16,151.14,6.6142]
[1745824904875,11.38354517,151.16,151.15,6.6138]
[1745824905375,23.56,151.17,151.13,12.0]
[1745824905773,34.94354517,151.2,151.13,12.0]
[1745824906076,11.38354517,151.22,151.13,46.94354517]
[1745824906376,34.94354517,151.23,151.13,46.94354517]
[1745824906574,11.38354517,151.23,151.19,6.6118]
[1745824906972,11.38354517,151.23,151.13,46.94354517]
[1745824907373,6.611,151.22,151.13,46.94354517]
[1745824907573,11.38354517,151.21,151.13,46.94354517]
[1745824908277,17.99494517,151.21,151.13,46.94354517]
[1745824908979,17.99494517,151.21,151.18,6.6122]
[1745824909676,11.38354517,151.21,151.19,6.6119]
[1745824910482,11.38354517,151.21,151.18,6.6123]